[Event "Titled Tuesday Blitz May 24 Early 2022"]
[White "Pham, Le Thao Nguyen"]
[Black "Lutz, Igor Oscar"]
[WhiteFideId "12401226"]
[BlackFideId "2110806"]
[WhiteElo "2271"]
[BlackElo "1724"]
[Result "1-0"]
[Round "05"]
[TimeControl "180+1"]
[Date "2022.05.25"]
[WhiteClock "0:00:12"]
[BlackClock "0:00:05"]

1. d4 {[%clk 0:03:00]}  d5 {[%clk 0:02:59]} 2. Nf3 {[%clk 0:03:00]}  e6 {[%clk 0:02:59]} 3. c4 {[%clk 0:03:01]}  Nf6 {[%clk 0:02:59]} 4. Nc3 {[%clk 0:03:02]}  c6 {[%clk 0:02:59]} 5. Bg5 {[%clk 0:03:02]}  h6 {[%clk 0:02:58]} 6. Bh4 {[%clk 0:02:55]}  Be7 {[%clk 0:02:58]} 7. e3 {[%clk 0:02:55]}  Nbd7 {[%clk 0:02:57]} 8. Qc2 {[%clk 0:02:54]}  O-O {[%clk 0:02:57]} 9. Rd1 {[%clk 0:02:53]}  a6 {[%clk 0:02:33]} 10. a3 {[%clk 0:02:30]}  Re8 {[%clk 0:02:31]} 11. Bd3 {[%clk 0:02:29]}  dxc4 {[%clk 0:02:31]} 12. Bxc4 {[%clk 0:02:28]}  b5 {[%clk 0:02:31]} 13. Ba2 {[%clk 0:02:23]}  Bb7 {[%clk 0:02:28]} 14. O-O {[%clk 0:02:20]}  Qc7 {[%clk 0:02:24]} 15. Bb1 {[%clk 0:02:19]}  g6 {[%clk 0:01:50]} 16. Bg3 {[%clk 0:02:13]}  Bd6 {[%clk 0:01:48]} 17. e4 {[%clk 0:02:11]}  Bxg3 {[%clk 0:01:47]} 18. hxg3 {[%clk 0:02:12]}  c5 {[%clk 0:01:41]} 19. e5 {[%clk 0:02:11]}  cxd4 {[%clk 0:01:31]} 20. Ne4 {[%clk 0:01:07]}  Qxc2 {[%clk 0:01:18]} 21. Nxf6+ {[%clk 0:01:06]}  Nxf6 {[%clk 0:01:15]} 22. Bxc2 {[%clk 0:01:07]}  Ng4 {[%clk 0:01:02]} 23. Rfe1 {[%clk 0:01:02]}  Rac8 {[%clk 0:00:55]} 24. Nxd4 {[%clk 0:00:58]}  Red8 {[%clk 0:00:39]} 25. Bb3 {[%clk 0:00:56]}  Bd5 {[%clk 0:00:26]} 26. Bc2 {[%clk 0:00:41]}  h5 {[%clk 0:00:19]} 27. f3 {[%clk 0:00:35]}  Nh6 {[%clk 0:00:19]} 28. Bb1 {[%clk 0:00:34]}  Nf5 {[%clk 0:00:19]} 29. Bxf5 {[%clk 0:00:33]}  gxf5 {[%clk 0:00:20]} 30. Kf2 {[%clk 0:00:33]}  Bc4 {[%clk 0:00:18]} 31. Ke3 {[%clk 0:00:32]}  Rd5 {[%clk 0:00:19]} 32. f4 {[%clk 0:00:28]}  Rcd8 {[%clk 0:00:19]} 33. Rd2 {[%clk 0:00:28]}  a5 {[%clk 0:00:15]} 34. Red1 {[%clk 0:00:26]}  b4 {[%clk 0:00:15]} 35. axb4 {[%clk 0:00:24]}  axb4 {[%clk 0:00:15]} 36. b3 {[%clk 0:00:23]}  Ba6 {[%clk 0:00:15]} 37. Nc6 {[%clk 0:00:23]}  Rxd2 {[%clk 0:00:15]} 38. Rxd2 {[%clk 0:00:23]}  Rxd2 {[%clk 0:00:11]} 39. Kxd2 {[%clk 0:00:24]}  Bf1 {[%clk 0:00:12]} 40. Nxb4 {[%clk 0:00:24]}  Bxg2 {[%clk 0:00:13]} 41. Nc2 {[%clk 0:00:19]}  f6 {[%clk 0:00:12]} 42. Ne3 {[%clk 0:00:16]}  Bc6 {[%clk 0:00:11]} 43. exf6 {[%clk 0:00:11]}  Kf7 {[%clk 0:00:11]} 44. Nc4 {[%clk 0:00:11]}  Kxf6 {[%clk 0:00:11]} 45. Ne5 {[%clk 0:00:12]}  Bd5 {[%clk 0:00:11]} 46. b4 {[%clk 0:00:12]}  Ke7 {[%clk 0:00:10]} 47. Ke3 {[%clk 0:00:13]}  Kd6 {[%clk 0:00:09]} 48. Kd4 {[%clk 0:00:14]}  Kc7 {[%clk 0:00:09]} 49. Kc5 {[%clk 0:00:14]}  Bg2 {[%clk 0:00:08]} 50. b5 {[%clk 0:00:14]}  Kb7 {[%clk 0:00:07]} 51. Nc4 {[%clk 0:00:12]}  Bd5 {[%clk 0:00:07]} 52. Nd6+ {[%clk 0:00:13]}  Kc7 {[%clk 0:00:07]} 53. Nf7 {[%clk 0:00:11]}  Kd7 {[%clk 0:00:07]} 54. Ne5+ {[%clk 0:00:10]}  Ke7 {[%clk 0:00:07]} 55. b6 {[%clk 0:00:10]}  Bb7 {[%clk 0:00:06]} 56. Nc4 {[%clk 0:00:08]}  Kf6 {[%clk 0:00:05]} 57. Kd6 {[%clk 0:00:07]}  Ba6 {[%clk 0:00:04]} 58. Ne5 {[%clk 0:00:07]}  Bb7 {[%clk 0:00:02]} 59. Kc7 {[%clk 0:00:07]}  Bd5 {[%clk 0:00:02]} 60. b7 {[%clk 0:00:08]}  Bxb7 {[%clk 0:00:02]} 61. Kxb7 {[%clk 0:00:09]}  Kg7 {[%clk 0:00:02]} 62. Kc7 {[%clk 0:00:09]}  Kh6 {[%clk 0:00:02]} 63. Kd6 {[%clk 0:00:09]}  h4 {[%clk 0:00:03]} 64. gxh4 {[%clk 0:00:10]}  Kh5 {[%clk 0:00:04]} 65. Kxe6 {[%clk 0:00:11]}  Kxh4 {[%clk 0:00:05]} 66. Kxf5 {[%clk 0:00:12]}  Kg3 {[%clk 0:00:05]} 67. Kg5 {[%clk 0:00:12]} 1-0


[Site "https://www.chess.com"]

[Event "Titled Tuesday Blitz May 24 Early 2022"]
[White "Piliczewski, Bogusz"]
[Black "Ciuffoletti, Paolo"]
[WhiteFideId "1104144"]
[BlackFideId "807630"]
[WhiteElo "1896"]
[BlackElo "2143"]
[Result "1/2-1/2"]
[Round "05"]
[TimeControl "180+1"]
[Date "2022.05.25"]
[WhiteClock "0:00:06"]
[BlackClock "0:00:15"]

1. d4 {[%clk 0:02:56]}  d5 {[%clk 0:02:59]} 2. Nf3 {[%clk 0:02:56]}  Nf6 {[%clk 0:02:58]} 3. c4 {[%clk 0:02:57]}  c6 {[%clk 0:02:58]} 4. e3 {[%clk 0:02:55]}  Bf5 {[%clk 0:02:55]} 5. Bd3 {[%clk 0:02:56]}  Bxd3 {[%clk 0:02:52]} 6. Qxd3 {[%clk 0:02:56]}  e6 {[%clk 0:02:52]} 7. O-O {[%clk 0:02:57]}  Nbd7 {[%clk 0:02:52]} 8. Nbd2 {[%clk 0:02:57]}  Be7 {[%clk 0:02:51]} 9. e4 {[%clk 0:02:57]}  dxe4 {[%clk 0:02:51]} 10. Nxe4 {[%clk 0:02:58]}  Nxe4 {[%clk 0:02:51]} 11. Qxe4 {[%clk 0:02:59]}  Nf6 {[%clk 0:02:51]} 12. Qe2 {[%clk 0:02:57]}  O-O {[%clk 0:02:49]} 13. Bg5 {[%clk 0:02:55]}  h6 {[%clk 0:02:46]} 14. Bh4 {[%clk 0:02:54]}  Qa5 {[%clk 0:02:32]} 15. b3 {[%clk 0:02:47]}  Rfe8 {[%clk 0:02:16]} 16. Rfd1 {[%clk 0:02:31]}  Rad8 {[%clk 0:02:02]} 17. Ne5 {[%clk 0:02:24]}  c5 {[%clk 0:01:52]} 18. Ng4 {[%clk 0:02:04]}  cxd4 {[%clk 0:01:36]} 19. Bxf6 {[%clk 0:01:54]}  Bxf6 {[%clk 0:01:34]} 20. Nxf6+ {[%clk 0:01:54]}  gxf6 {[%clk 0:01:34]} 21. Qg4+ {[%clk 0:01:53]}  Kh7 {[%clk 0:01:25]} 22. Rxd4 {[%clk 0:01:50]}  Rg8 {[%clk 0:01:21]} 23. Qe4+ {[%clk 0:01:44]}  f5 {[%clk 0:01:20]} 24. Qd3 {[%clk 0:01:41]}  Qe5 {[%clk 0:01:08]} 25. Rd1 {[%clk 0:01:34]}  Qg7 {[%clk 0:01:00]} 26. g3 {[%clk 0:01:30]}  Rxd4 {[%clk 0:00:47]} 27. Qxd4 {[%clk 0:01:29]}  b6 {[%clk 0:00:31]} 28. Qxg7+ {[%clk 0:01:23]}  Kxg7 {[%clk 0:00:28]} 29. Rd7 {[%clk 0:01:23]}  Ra8 {[%clk 0:00:28]} 30. f4 {[%clk 0:01:11]}  Kf8 {[%clk 0:00:26]} 31. Kf2 {[%clk 0:01:09]}  Ke8 {[%clk 0:00:26]} 32. Rb7 {[%clk 0:01:05]}  Rd8 {[%clk 0:00:26]} 33. Ke3 {[%clk 0:00:57]}  Rd7 {[%clk 0:00:26]} 34. Rb8+ {[%clk 0:00:52]}  Ke7 {[%clk 0:00:26]} 35. b4 {[%clk 0:00:43]}  Kf6 {[%clk 0:00:26]} 36. c5 {[%clk 0:00:31]}  bxc5 {[%clk 0:00:25]} 37. bxc5 {[%clk 0:00:31]}  Rc7 {[%clk 0:00:25]} 38. Kd4 {[%clk 0:00:28]}  Rd7+ {[%clk 0:00:23]} 39. Kc4 {[%clk 0:00:28]}  Rd2 {[%clk 0:00:20]} 40. a4 {[%clk 0:00:19]}  Rxh2 {[%clk 0:00:19]} 41. Ra8 {[%clk 0:00:19]}  Rc2+ {[%clk 0:00:18]} 42. Kb5 {[%clk 0:00:18]}  Rb2+ {[%clk 0:00:17]} 43. Kc6 {[%clk 0:00:18]}  Rb3 {[%clk 0:00:17]} 44. Rxa7 {[%clk 0:00:17]}  Rxg3 {[%clk 0:00:17]} 45. a5 {[%clk 0:00:15]}  Ra3 {[%clk 0:00:17]} 46. a6 {[%clk 0:00:15]}  h5 {[%clk 0:00:17]} 47. Ra8 {[%clk 0:00:13]}  h4 {[%clk 0:00:17]} 48. Kb6 {[%clk 0:00:12]}  h3 {[%clk 0:00:16]} 49. Rh8 {[%clk 0:00:11]}  Rb3+ {[%clk 0:00:16]} 50. Kc7 {[%clk 0:00:10]}  Ra3 {[%clk 0:00:15]} 51. Kb7 {[%clk 0:00:09]}  Rb3+ {[%clk 0:00:15]} 52. Kc7 {[%clk 0:00:07]}  Ra3 {[%clk 0:00:15]} 53. Kb7 {[%clk 0:00:06]}  Rb3+ {[%clk 0:00:15]} 54. Kc7 {[%clk 0:00:06]} 1/2-1/2


[Site "https://www.chess.com"]

[Event "Titled Tuesday Blitz May 24 Early 2022"]
[White "Proudian, Armen"]
[Black "Hartikainen, Jarmo"]
[WhiteFideId "2130734"]
[BlackFideId "503134"]
[WhiteElo "2380"]
[BlackElo "2122"]
[Result "1-0"]
[Round "05"]
[TimeControl "180+1"]
[Date "2022.05.25"]
[WhiteClock "0:00:58"]
[BlackClock "0:00:08"]

1. e4 {[%clk 0:02:59]}  c5 {[%clk 0:02:58]} 2. Nf3 {[%clk 0:02:58]}  Nc6 {[%clk 0:02:58]} 3. d4 {[%clk 0:02:58]}  cxd4 {[%clk 0:02:58]} 4. Nxd4 {[%clk 0:02:59]}  Nf6 {[%clk 0:02:58]} 5. Nc3 {[%clk 0:02:59]}  d6 {[%clk 0:02:59]} 6. Bg5 {[%clk 0:02:59]}  e6 {[%clk 0:02:59]} 7. Bb5 {[%clk 0:02:59]}  Bd7 {[%clk 0:02:58]} 8. Qd3 {[%clk 0:02:59]}  Nxd4 {[%clk 0:02:48]} 9. Bxd7+ {[%clk 0:02:52]}  Qxd7 {[%clk 0:02:45]} 10. Qxd4 {[%clk 0:02:52]}  Be7 {[%clk 0:02:41]} 11. O-O-O {[%clk 0:02:52]}  O-O {[%clk 0:02:37]} 12. e5 {[%clk 0:02:25]}  Nd5 {[%clk 0:01:52]} 13. Bxe7 {[%clk 0:02:23]}  Qxe7 {[%clk 0:01:43]} 14. Nxd5 {[%clk 0:02:18]}  exd5 {[%clk 0:01:42]} 15. exd6 {[%clk 0:02:18]}  Qxd6 {[%clk 0:01:41]} 16. Qxd5 {[%clk 0:02:17]}  Qg6 {[%clk 0:01:11]} 17. f4 {[%clk 0:02:09]}  Rac8 {[%clk 0:01:07]} 18. Rd2 {[%clk 0:02:09]}  h6 {[%clk 0:01:03]} 19. Re1 {[%clk 0:02:07]}  Rc6 {[%clk 0:00:39]} 20. b3 {[%clk 0:02:01]}  Rfc8 {[%clk 0:00:38]} 21. Ree2 {[%clk 0:02:02]}  Qf6 {[%clk 0:00:33]} 22. Qe5 {[%clk 0:02:02]}  Qg6 {[%clk 0:00:27]} 23. g3 {[%clk 0:02:00]}  Rc5 {[%clk 0:00:26]} 24. Qe4 {[%clk 0:01:58]}  Qf6 {[%clk 0:00:25]} 25. Kb1 {[%clk 0:01:41]}  a5 {[%clk 0:00:19]} 26. Rd5 {[%clk 0:01:27]}  b5 {[%clk 0:00:18]} 27. Rxc5 {[%clk 0:01:25]}  Rxc5 {[%clk 0:00:18]} 28. a3 {[%clk 0:01:20]}  b4 {[%clk 0:00:17]} 29. axb4 {[%clk 0:01:20]}  axb4 {[%clk 0:00:17]} 30. Qxb4 {[%clk 0:01:21]}  Rc8 {[%clk 0:00:16]} 31. Qe4 {[%clk 0:01:20]}  Qa6 {[%clk 0:00:15]} 32. Qd3 {[%clk 0:01:05]}  Qa3 {[%clk 0:00:14]} 33. Qd7 {[%clk 0:01:01]}  Ra8 {[%clk 0:00:14]} 34. Re8+ {[%clk 0:01:01]}  Kh7 {[%clk 0:00:13]} 35. Qf5+ {[%clk 0:00:57]}  g6 {[%clk 0:00:08]} 36. Qxf7# {[%clk 0:00:58]} 1-0


[Site "https://www.chess.com"]

[Event "Titled Tuesday Blitz May 24 Early 2022"]
[White "Quirke, Jeffrey"]
[Black "Rodchenkov, Sergey D."]
[WhiteFideId "2013029"]
[BlackFideId "4168712"]
[WhiteElo "2234"]
[BlackElo "2306"]
[Result "0-1"]
[Round "05"]
[TimeControl "180+1"]
[Date "2022.05.25"]
[WhiteClock "0:00:01"]
[BlackClock "0:00:13"]

1. e4 {[%clk 0:03:00]}  c5 {[%clk 0:02:59]} 2. Nc3 {[%clk 0:02:59]}  d6 {[%clk 0:03:00]} 3. f4 {[%clk 0:02:58]}  g6 {[%clk 0:02:59]} 4. Nf3 {[%clk 0:02:58]}  Bg7 {[%clk 0:02:59]} 5. a4 {[%clk 0:02:53]}  Nc6 {[%clk 0:02:56]} 6. Bb5 {[%clk 0:02:53]}  Bd7 {[%clk 0:02:55]} 7. Bxc6 {[%clk 0:02:49]}  Bxc6 {[%clk 0:02:56]} 8. d3 {[%clk 0:02:49]}  Nf6 {[%clk 0:02:53]} 9. O-O {[%clk 0:02:48]}  O-O {[%clk 0:02:51]} 10. Qe1 {[%clk 0:02:46]}  Nd7 {[%clk 0:02:47]} 11. f5 {[%clk 0:02:42]}  e6 {[%clk 0:02:42]} 12. fxe6 {[%clk 0:02:20]}  fxe6 {[%clk 0:02:43]} 13. a5 {[%clk 0:02:19]}  Ne5 {[%clk 0:02:39]} 14. Qg3 {[%clk 0:02:07]}  Nxf3+ {[%clk 0:02:34]} 15. Rxf3 {[%clk 0:02:06]}  Rxf3 {[%clk 0:02:32]} 16. Qxf3 {[%clk 0:02:06]}  Qf6 {[%clk 0:02:31]} 17. Be3 {[%clk 0:01:51]}  Qxf3 {[%clk 0:02:26]} 18. gxf3 {[%clk 0:01:50]}  a6 {[%clk 0:01:55]} 19. Kg2 {[%clk 0:01:49]}  Rf8 {[%clk 0:01:51]} 20. Kg3 {[%clk 0:01:35]}  Be5+ {[%clk 0:01:40]} 21. f4 {[%clk 0:01:33]}  Bg7 {[%clk 0:01:39]} 22. Rf1 {[%clk 0:00:59]}  Bh6 {[%clk 0:01:26]} 23. Rf3 {[%clk 0:00:51]}  Kg7 {[%clk 0:01:24]} 24. Ne2 {[%clk 0:00:47]}  Kg8 {[%clk 0:01:23]} 25. c4 {[%clk 0:00:45]}  Bg7 {[%clk 0:01:23]} 26. b3 {[%clk 0:00:44]}  Rf7 {[%clk 0:01:20]} 27. h4 {[%clk 0:00:44]}  Rd7 {[%clk 0:01:17]} 28. Rf1 {[%clk 0:00:35]}  Bb2 {[%clk 0:01:10]} 29. Rd1 {[%clk 0:00:33]}  Bf6 {[%clk 0:01:11]} 30. e5 {[%clk 0:00:26]}  dxe5 {[%clk 0:01:10]} 31. Bxc5 {[%clk 0:00:27]}  exf4+ {[%clk 0:01:07]} 32. Nxf4 {[%clk 0:00:27]}  Be5 {[%clk 0:01:01]} 33. Kg4 {[%clk 0:00:12]}  h5+ {[%clk 0:00:47]} 34. Kg5 {[%clk 0:00:12]}  Kf7 {[%clk 0:00:42]} 35. Rf1 {[%clk 0:00:06]}  Bf6+ {[%clk 0:00:42]} 36. Kh6 {[%clk 0:00:06]}  Bg7+ {[%clk 0:00:23]} 37. Kg5 {[%clk 0:00:05]}  Kg8 {[%clk 0:00:15]} 38. Nxg6 {[%clk 0:00:05]}  Rxd3 {[%clk 0:00:14]} 39. Ne7+ {[%clk 0:00:04]}  Kh7 {[%clk 0:00:14]} 40. Nxc6 {[%clk 0:00:04]}  bxc6 {[%clk 0:00:15]} 41. b4 {[%clk 0:00:03]}  Rc3 {[%clk 0:00:15]} 42. Rf7 {[%clk 0:00:01]}  Rxc4 {[%clk 0:00:13]} 43. Ra7 {[%clk 0:00:01]}  Rg4+ {[%clk 0:00:13]} 0-1


[Site "https://www.chess.com"]

[Event "Titled Tuesday Blitz May 24 Early 2022"]
[White "Rahman, Adel"]
[Black "Butti, Enrique"]
[WhiteFideId "14204177"]
[BlackFideId "3700470"]
[WhiteElo "2175"]
[BlackElo "2080"]
[Result "1-0"]
[Round "05"]
[TimeControl "180+1"]
[Date "2022.05.25"]
[WhiteClock "0:00:59"]
[BlackClock "0:01:07"]

1. e4 {[%clk 0:03:00]}  c5 {[%clk 0:02:58]} 2. Nf3 {[%clk 0:03:00]}  d6 {[%clk 0:02:57]} 3. d4 {[%clk 0:02:59]}  cxd4 {[%clk 0:02:57]} 4. Nxd4 {[%clk 0:03:00]}  Nf6 {[%clk 0:02:56]} 5. Nc3 {[%clk 0:03:00]}  a6 {[%clk 0:02:55]} 6. Bg5 {[%clk 0:03:00]}  e6 {[%clk 0:02:55]} 7. f4 {[%clk 0:03:00]}  b5 {[%clk 0:02:54]} 8. e5 {[%clk 0:02:56]}  dxe5 {[%clk 0:02:53]} 9. fxe5 {[%clk 0:02:55]}  Qc7 {[%clk 0:02:52]} 10. exf6 {[%clk 0:02:41]}  Qe5+ {[%clk 0:02:50]} 11. Be2 {[%clk 0:02:35]}  Qxg5 {[%clk 0:02:50]} 12. O-O {[%clk 0:02:34]}  Ra7 {[%clk 0:02:45]} 13. Qd3 {[%clk 0:02:26]}  Rd7 {[%clk 0:02:39]} 14. Ne4 {[%clk 0:02:20]}  Qh4 {[%clk 0:02:34]} 15. Qe3 {[%clk 0:02:09]}  Bb7 {[%clk 0:02:21]} 16. Bd3 {[%clk 0:02:00]}  Bxe4 {[%clk 0:01:56]} 17. Bxe4 {[%clk 0:01:59]}  Bc5 {[%clk 0:01:52]} 18. c3 {[%clk 0:01:59]}  e5 {[%clk 0:01:45]} 19. Bc2 {[%clk 0:01:42]}  Bxd4 {[%clk 0:01:37]} 20. cxd4 {[%clk 0:01:41]}  Qxd4 {[%clk 0:01:33]} 21. Qxd4 {[%clk 0:01:18]}  Rxd4 {[%clk 0:01:28]} 22. Rae1 {[%clk 0:01:16]}  Nc6 {[%clk 0:01:23]} 23. fxg7 {[%clk 0:01:12]}  Rg8 {[%clk 0:01:19]} 24. Rf6 {[%clk 0:01:12]}  Ne7 {[%clk 0:01:11]} 25. Rxe5 {[%clk 0:01:05]}  Rxg7 {[%clk 0:01:10]} 26. Rxa6 {[%clk 0:01:05]}  Rd2 {[%clk 0:01:07]} 27. Be4 {[%clk 0:00:59]} 1-0


[Site "https://www.chess.com"]

[Event "Titled Tuesday Blitz May 24 Early 2022"]
[White "Sankalan Shah"]
[Black "Li, Hui"]
[WhiteFideId "25600362"]
[BlackFideId "15400310"]
[WhiteElo "1648"]
[BlackElo "1954"]
[Result "1-0"]
[Round "05"]
[TimeControl "180+1"]
[Date "2022.05.25"]
[WhiteClock "0:00:41"]
[BlackClock "0:00:03"]

1. d4 {[%clk 0:03:00]}  Nf6 {[%clk 0:02:36]} 2. c4 {[%clk 0:03:00]}  e6 {[%clk 0:02:34]} 3. Nc3 {[%clk 0:03:00]}  d5 {[%clk 0:02:31]} 4. Nf3 {[%clk 0:02:59]}  Be7 {[%clk 0:02:31]} 5. Bf4 {[%clk 0:02:59]}  O-O {[%clk 0:02:31]} 6. e3 {[%clk 0:02:59]}  c5 {[%clk 0:02:32]} 7. dxc5 {[%clk 0:02:54]}  Bxc5 {[%clk 0:02:33]} 8. Qc2 {[%clk 0:02:53]}  Nc6 {[%clk 0:02:29]} 9. a3 {[%clk 0:02:53]}  Qa5 {[%clk 0:02:29]} 10. Rd1 {[%clk 0:02:50]}  Be7 {[%clk 0:02:27]} 11. cxd5 {[%clk 0:02:37]}  Nxd5 {[%clk 0:02:11]} 12. Bd3 {[%clk 0:02:17]}  g6 {[%clk 0:01:39]} 13. Bh6 {[%clk 0:02:12]}  Rd8 {[%clk 0:01:21]} 14. b4 {[%clk 0:01:58]}  Ncxb4 {[%clk 0:01:00]} 15. axb4 {[%clk 0:01:59]}  Bxb4 {[%clk 0:00:59]} 16. O-O {[%clk 0:01:49]}  Bxc3 {[%clk 0:00:53]} 17. Bc4 {[%clk 0:01:39]}  Bg7 {[%clk 0:00:46]} 18. Bxg7 {[%clk 0:01:32]}  Kxg7 {[%clk 0:00:47]} 19. e4 {[%clk 0:01:33]}  Ne7 {[%clk 0:00:28]} 20. Qb2+ {[%clk 0:01:26]}  f6 {[%clk 0:00:25]} 21. Rxd8 {[%clk 0:01:11]}  Qxd8 {[%clk 0:00:26]} 22. Ng5 {[%clk 0:01:11]}  b5 {[%clk 0:00:13]} 23. Bxe6 {[%clk 0:01:08]}  Nc6 {[%clk 0:00:06]} 24. Qxb5 {[%clk 0:00:53]}  fxg5 {[%clk 0:00:05]} 25. Qxc6 {[%clk 0:00:51]}  Bxe6 {[%clk 0:00:05]} 26. Qxe6 {[%clk 0:00:51]}  Rc8 {[%clk 0:00:03]} 27. Ra1 {[%clk 0:00:44]}  Qe8 {[%clk 0:00:03]} 28. Rxa7+ {[%clk 0:00:42]}  Kh8 {[%clk 0:00:03]} 29. Qf6+ {[%clk 0:00:41]} 1-0


[Site "https://www.chess.com"]

[Event "Titled Tuesday Blitz May 24 Early 2022"]
[White "Shipov, Sergei"]
[Black "Kim, Yoon-Young"]
[WhiteFideId "4113624"]
[BlackFideId "30908779"]
[WhiteElo "2803"]
[BlackElo "2109"]
[Result "1-0"]
[Round "05"]
[TimeControl "180+1"]
[Date "2022.05.24"]
[WhiteClock "0:02:07"]
[BlackClock "0:00:33"]

1. d4 {[%clk 0:03:00]}  Nf6 {[%clk 0:02:59]} 2. c4 {[%clk 0:02:57]}  e6 {[%clk 0:02:59]} 3. Nc3 {[%clk 0:02:57]}  Bb4 {[%clk 0:02:59]} 4. Qc2 {[%clk 0:02:57]}  d5 {[%clk 0:02:59]} 5. a3 {[%clk 0:02:57]}  Bxc3+ {[%clk 0:02:59]} 6. Qxc3 {[%clk 0:02:58]}  O-O {[%clk 0:02:59]} 7. e3 {[%clk 0:02:54]}  c5 {[%clk 0:02:10]} 8. dxc5 {[%clk 0:02:51]}  Ne4 {[%clk 0:02:10]} 9. Qc2 {[%clk 0:02:50]}  Nxc5 {[%clk 0:02:01]} 10. b4 {[%clk 0:02:50]}  Ne4 {[%clk 0:01:55]} 11. Bb2 {[%clk 0:02:50]}  a5 {[%clk 0:01:52]} 12. b5 {[%clk 0:02:45]}  b6 {[%clk 0:01:46]} 13. cxd5 {[%clk 0:02:41]}  exd5 {[%clk 0:01:44]} 14. Nf3 {[%clk 0:02:40]}  Bb7 {[%clk 0:01:36]} 15. Be2 {[%clk 0:02:40]}  Nd7 {[%clk 0:01:36]} 16. O-O {[%clk 0:02:39]}  Rc8 {[%clk 0:01:36]} 17. Qd3 {[%clk 0:02:39]}  Ndc5 {[%clk 0:01:35]} 18. Qd4 {[%clk 0:02:39]}  Ne6 {[%clk 0:01:35]} 19. Qe5 {[%clk 0:02:39]}  Qe7 {[%clk 0:01:17]} 20. Rac1 {[%clk 0:02:38]}  f6 {[%clk 0:01:16]} 21. Qf5 {[%clk 0:02:37]}  a4 {[%clk 0:01:01]} 22. Rfd1 {[%clk 0:02:24]}  Nd6 {[%clk 0:00:54]} 23. Qg4 {[%clk 0:02:23]}  Ne4 {[%clk 0:00:50]} 24. h4 {[%clk 0:02:17]}  Rc5 {[%clk 0:00:40]} 25. Nd4 {[%clk 0:02:11]}  Rfc8 {[%clk 0:00:33]} 26. Qxe6+ {[%clk 0:02:07]} 1-0


[Site "https://www.chess.com"]

[Event "Titled Tuesday Blitz May 24 Early 2022"]
[White "Soumya, Swaminathan"]
[Black "Tuleyeva-Aketayeva, Dana"]
[WhiteFideId "5016193"]
[BlackFideId "13701932"]
[WhiteElo "2115"]
[BlackElo "1875"]
[Result "1-0"]
[Round "05"]
[TimeControl "180+1"]
[Date "2022.05.25"]
[WhiteClock "0:00:06"]
[BlackClock "0:00:01"]

1. d4 {[%clk 0:03:00]}  Nf6 {[%clk 0:02:50]} 2. c4 {[%clk 0:03:01]}  e6 {[%clk 0:02:50]} 3. Nf3 {[%clk 0:03:01]}  c5 {[%clk 0:02:50]} 4. d5 {[%clk 0:02:59]}  exd5 {[%clk 0:02:50]} 5. cxd5 {[%clk 0:02:59]}  d6 {[%clk 0:02:45]} 6. Nc3 {[%clk 0:02:59]}  g6 {[%clk 0:02:45]} 7. Nd2 {[%clk 0:02:33]}  Bg7 {[%clk 0:02:44]} 8. e4 {[%clk 0:02:32]}  O-O {[%clk 0:02:41]} 9. Be2 {[%clk 0:02:32]}  Nfd7 {[%clk 0:02:31]} 10. O-O {[%clk 0:02:28]}  a6 {[%clk 0:02:16]} 11. a4 {[%clk 0:02:27]}  Ne5 {[%clk 0:02:12]} 12. f4 {[%clk 0:02:06]}  Ned7 {[%clk 0:02:10]} 13. Nc4 {[%clk 0:02:06]}  Qc7 {[%clk 0:01:56]} 14. Qb3 {[%clk 0:01:28]}  b6 {[%clk 0:01:33]} 15. Bf3 {[%clk 0:01:18]}  Ra7 {[%clk 0:01:23]} 16. Re1 {[%clk 0:01:03]}  Bd4+ {[%clk 0:01:23]} 17. Kh1 {[%clk 0:01:02]}  Nf6 {[%clk 0:01:22]} 18. e5 {[%clk 0:00:57]}  Ng4 {[%clk 0:01:20]} 19. Bxg4 {[%clk 0:00:52]}  Bxg4 {[%clk 0:01:21]} 20. Nxd6 {[%clk 0:00:49]}  Bd7 {[%clk 0:00:38]} 21. Nce4 {[%clk 0:00:48]}  a5 {[%clk 0:00:20]} 22. e6 {[%clk 0:00:42]}  Be8 {[%clk 0:00:09]} 23. Nxe8 {[%clk 0:00:29]}  Rxe8 {[%clk 0:00:10]} 24. d6 {[%clk 0:00:29]}  Qd8 {[%clk 0:00:06]} 25. e7 {[%clk 0:00:19]}  Qd7 {[%clk 0:00:05]} 26. Qd5 {[%clk 0:00:16]}  Qc6 {[%clk 0:00:04]} 27. Qc4 {[%clk 0:00:07]}  Nd7 {[%clk 0:00:02]} 28. Bd2 {[%clk 0:00:06]}  Rb7 {[%clk 0:00:02]} 29. Rac1 {[%clk 0:00:05]}  b5 {[%clk 0:00:01]} 30. Qxd4 {[%clk 0:00:05]}  cxd4 {[%clk 0:00:01]} 31. Rxc6 {[%clk 0:00:06]} 1-0


[Site "https://www.chess.com"]